Workbook

Sheet 1. Info
R1: 1
N13: Version | O13: 1
C14: Applicant Name: | F14: PowerStream Inc.
C16: Service Territory: | F16: York Region and Simcoe County
C18: Name: | F18: Tom Barrett
C20: Title: | D20: Title: | F20: Manager, Rate Applications
C22: Phone Number: | F22: 905.532.4640 | AA22: Company Name
Z23: 1 | AA23: Algoma Power Inc.
C24: Email Address: | F24: tom.barrett@powerstream.ca | Z24: 2 | AA24: Atikokan Hydro Inc.
Z25: 3 | AA25: Attawapiskat Power Corp.
Z26: 4 | AA26: Bluewater Power Distribution Corporation
Z27: 5 | AA27: Brant County Power Inc.
C28: This Workbook Model is protected by copyright and is being made available to you solely for the purpose of filing your IRM application. You may use and copy this model for that purpose, and provide a copy of this model to any person that is advising or assisting you in that regard. Except as indicated above, any copying, reproduction, publication, sale, adaptation, translation, modification, reverse engineering or other use or dissemination of this model without the express written consent of the Ontario Energy Board is prohibited. If you provide a copy of this model to a person that is advising or assisting you in preparing the application or reviewing your draft rate order, you must ensure that the person understands and agrees to the restrictions noted above. While this model has been provided in Excel format and is required to be filed with the applications, the onus remains on the applicant to ensure the accuracy of the data and the results. | Z28: 6 | AA28: Brantford Power Inc.
Z29: 7 | AA29: Burlington Hydro Inc.
Z30: 8 | AA30: Cambridge and North Dumfries Hydro Inc.
Z31: 9 | AA31: Canadian Niagara Power Inc.
Z32: 10 | AA32: Centre Wellington Hydro Ltd.
Z33: 11 | AA33: Chapleau Public Utilities Corporation
Z34: 12 | AA34: Clinton Power Corporation
Z35: 13 | AA35: COLLUS Power Corporation
Z36: 14 | AA36: Cooperative Hydro Embrun Inc.
Z37: 15 | AA37: E.L.K. Energy Inc.
Z38: 16 | AA38: Enersource Hydro Mississauga Inc.
Z39: 17 | AA39: Entegrus Powerlines Inc.
Z40: 18 | AA40: ENWIN Utilities Ltd.
Z41: 19 | AA41: Erie Thames Powerlines Corporation
Z42: 20 | AA42: Espanola Regional Hydro Distribution Corporation
Z43: 21 | AA43: Essex Powerlines Corporation
Z44: 22 | AA44: Festival Hydro Inc.
Z45: 23 | AA45: Fort Albany Power Corporation
Z46: 24 | AA46: Fort Frances Power Corporation
Z47: 25 | AA47: Greater Sudbury Hydro Inc.
Z48: 26 | AA48: Grimsby Power Inc.
Z49: 27 | AA49: Guelph Hydro Electric Systems Inc.
Z50: 28 | AA50: Haldimand County Hydro Inc.
Z51: 29 | AA51: Halton Hills Hydro Inc.
Z52: 30 | AA52: Hearst Power Distribution Company Limited
Z53: 31 | AA53: Horizon Utilities Corporation
Z54: 32 | AA54: Hydro 2000 Inc.
Z55: 33 | AA55: Hydro Hawkesbury Inc.
Z56: 34 | AA56: Hydro One Brampton Networks Inc.
Z57: 35 | AA57: Hydro One Networks Inc.
Z58: 36 | AA58: Hydro Ottawa Limited
Z59: 37 | AA59: Innisfil Hydro Distribution Systems Limited
Z60: 38 | AA60: Kashechewan Power Corporation
Z61: 39 | AA61: Kenora Hydro Electric Corporation Ltd.
Z62: 40 | AA62: Kingston Hydro Corporation
Z63: 41 | AA63: Kitchener-Wilmot Hydro Inc.
Z64: 42 | AA64: Lakefront Utilities Inc.
Z65: 43 | AA65: Lakeland Power Distribution Ltd.
Z66: 44 | AA66: London Hydro Inc.
Z67: 45 | AA67: Midland Power Utility Corporation
Z68: 46 | AA68: Milton Hydro Distribution inc.
Z69: 47 | AA69: Newmarket - Tay Power Distribution Ltd.
Z70: 48 | AA70: Niagara Peninsula Energy Inc.
Z71: 49 | AA71: Niagara-on-the-Lake Hydro Inc.
Z72: 50 | AA72: Norfolk Power Distribution Inc.
Z73: 51 | AA73: North Bay Hydro Distribution Limited
Z74: 52 | AA74: Northern Ontario Wires Inc.
Z75: 53 | AA75: Oakville Hydro Electricity Distribution Inc.
Z76: 54 | AA76: Orangeville Hydro Limited
Z77: 55 | AA77: Orillia Power Distribution Corporation
Z78: 56 | AA78: Oshawa PUC Networks Inc.
Z79: 57 | AA79: Ottawa River Power Corporation
Z80: 58 | AA80: Parry Sound Power Corporation
Z81: 59 | AA81: Peterborough Distribution Incorporated
Z82: 60 | AA82: PowerStream Inc.
Z83: 61 | AA83: PUC Distribution Inc.
Z84: 62 | AA84: Renfrew Hydro Inc.
Z85: 63 | AA85: Rideau St. Lawrence Distribution Inc.
Z86: 64 | AA86: Sioux Lookout Hydro Inc.
Z87: 65 | AA87: St. Thomas Energy Inc.
Z88: 66 | AA88: Thunder Bay Hydro Electricity Distribution Inc.
Z89: 67 | AA89: Tillsonburg Hydro Inc.
Z90: 68 | AA90: Toronto Hydro-Electric System Limited
Z91: 69 | AA91: Veridian Connections Inc.
Z92: 70 | AA92: Wasaga Distribution Inc.
Z93: 71 | AA93: Waterloo North Hydro Inc.
Z94: 72 | AA94: Welland Hydro-Electric System Corp.
Z95: 73 | AA95: Wellington North Power Inc.
Z96: 74 | AA96: West Coast Huron Energy Inc.
Z97: 75 | AA97: West Perth Power Inc.
Z98: 76 | AA98: Westario Power Inc.
Z99: 77 | AA99: Whitby Hydro Electric Corporation
Z100: 78 | AA100: Woodstock Hydro Services Inc.

Sheet Incremental Capital Summary
B10: Using the pull-down menu below, please identify what year of the IRM cycle you are in.
B11: 1st year of IRM cycle
B13: Name or General Description of Project
B14: System Renewal - Pole Replacements
B16: Details of Project
B17: See Appendix G
G19: Capital Cost (1/2 year rule applied) | I19: Depreciation Rate
B20: Asset Component | E20: Capital Cost | K20: CCA Class | M20: CCA Rate
B21: 1 | C21: Poles towers and fixtures | E21: 3677840 | G21: =IF($B$11="4th year of IRM cycle", E21/2, 0) -> 0 | I21: 0.0222222 | K21: 47 | M21: 0.08
B22: 2 | C22: Overhead conductor and devices | E22: 1098033 | G22: =IF($B$11="4th year of IRM cycle", E22/2, 0) -> 0 | I22: 0.025 | K22: 47 | M22: 0.08
B23: 3 | G23: =IF($B$11="4th year of IRM cycle", E23/2, 0) -> 0
B24: 4 | G24: =IF($B$11="4th year of IRM cycle", E24/2, 0) -> 0
B25: 5 | G25: =IF($B$11="4th year of IRM cycle", E25/2, 0) -> 0
E27: 2014 | I27: 2015 | K27: 2016 | M27: 2017 | O27: 2018
B28: Closing Net Fixed Asset | E28: =SUM('Fixed Asset Amort and UCC 1'!D32,'Fixed Asset Amort and UCC 2'!D32, 'Fixed Asset Amort and UCC 3'!D32, 'Fixed Asset Amort and UCC 4'!D32, 'Fixed Asset Amort and UCC 5'!D32) -> 4666692.479 | I28: =SUM('Fixed Asset Amort and UCC 1'!E32,'Fixed Asset Amort and UCC 2'!E32, 'Fixed Asset Amort and UCC 3'!E32, 'Fixed Asset Amort and UCC 4'!E32, 'Fixed Asset Amort and UCC 5'!E32) -> 4557511.958 | K28: =SUM('Fixed Asset Amort and UCC 1'!F32,'Fixed Asset Amort and UCC 2'!F32, 'Fixed Asset Amort and UCC 3'!F32, 'Fixed Asset Amort and UCC 4'!F32, 'Fixed Asset Amort and UCC 5'!F32) -> 4448331.437 | M28: =SUM('Fixed Asset Amort and UCC 1'!G32,'Fixed Asset Amort and UCC 2'!G32, 'Fixed Asset Amort and UCC 3'!G32, 'Fixed Asset Amort and UCC 4'!G32, 'Fixed Asset Amort and UCC 5'!G32) -> 4339150.916 | O28: =SUM('Fixed Asset Amort and UCC 1'!H32,'Fixed Asset Amort and UCC 2'!H32, 'Fixed Asset Amort and UCC 3'!H32, 'Fixed Asset Amort and UCC 4'!H32, 'Fixed Asset Amort and UCC 5'!H32) -> 4229970.395
B30: Amortization Expense | E30: =SUM('Fixed Asset Amort and UCC 1'!D28,'Fixed Asset Amort and UCC 2'!D28, 'Fixed Asset Amort and UCC 3'!D28, 'Fixed Asset Amort and UCC 4'!D28, 'Fixed Asset Amort and UCC 5'!D28) -> 109180.521 | I30: =SUM('Fixed Asset Amort and UCC 1'!E28,'Fixed Asset Amort and UCC 2'!E28, 'Fixed Asset Amort and UCC 3'!E28, 'Fixed Asset Amort and UCC 4'!E28, 'Fixed Asset Amort and UCC 5'!E28) -> 109180.521 | K30: =SUM('Fixed Asset Amort and UCC 1'!F28,'Fixed Asset Amort and UCC 2'!F28, 'Fixed Asset Amort and UCC 3'!F28, 'Fixed Asset Amort and UCC 4'!F28, 'Fixed Asset Amort and UCC 5'!F28) -> 109180.521 | M30: =SUM('Fixed Asset Amort and UCC 1'!G28,'Fixed Asset Amort and UCC 2'!G28, 'Fixed Asset Amort and UCC 3'!G28, 'Fixed Asset Amort and UCC 4'!G28, 'Fixed Asset Amort and UCC 5'!G28) -> 109180.521 | O30: =SUM('Fixed Asset Amort and UCC 1'!H28,'Fixed Asset Amort and UCC 2'!H28, 'Fixed Asset Amort and UCC 3'!H28, 'Fixed Asset Amort and UCC 4'!H28, 'Fixed Asset Amort and UCC 5'!H28) -> 109180.521
B32: CCA | E32: =SUM('Fixed Asset Amort and UCC 1'!D50,'Fixed Asset Amort and UCC 2'!D50, 'Fixed Asset Amort and UCC 3'!D50, 'Fixed Asset Amort and UCC 4'!D50, 'Fixed Asset Amort and UCC 5'!D50) -> 382069.84 | I32: =SUM('Fixed Asset Amort and UCC 1'!E50,'Fixed Asset Amort and UCC 2'!E50, 'Fixed Asset Amort and UCC 3'!E50, 'Fixed Asset Amort and UCC 4'!E50, 'Fixed Asset Amort and UCC 5'!E50) -> 351504.2528 | K32: =SUM('Fixed Asset Amort and UCC 1'!F50,'Fixed Asset Amort and UCC 2'!F50, 'Fixed Asset Amort and UCC 3'!F50, 'Fixed Asset Amort and UCC 4'!F50, 'Fixed Asset Amort and UCC 5'!F50) -> 323383.9126 | M32: =SUM('Fixed Asset Amort and UCC 1'!G50,'Fixed Asset Amort and UCC 2'!G50, 'Fixed Asset Amort and UCC 3'!G50, 'Fixed Asset Amort and UCC 4'!G50, 'Fixed Asset Amort and UCC 5'!G50) -> 297513.1996 | O32: =SUM('Fixed Asset Amort and UCC 1'!H50,'Fixed Asset Amort and UCC 2'!H50, 'Fixed Asset Amort and UCC 3'!H50, 'Fixed Asset Amort and UCC 4'!H50, 'Fixed Asset Amort and UCC 5'!H50) -> 273712.1436

Sheet Fixed Asset Amort and UCC 1
B10: Fixed Asset Amortization and UCC 1
B12: Name or General Description of Project
B13: =IF(ISBLANK('Incremental Capital Summary'!B14), "", 'Incremental Capital Summary'!B14) -> System Renewal - Pole Replacements
B15: Asset Component
B16: =IF(ISBLANK('Incremental Capital Summary'!C21),"",'Incremental Capital Summary'!C21) -> Poles towers and fixtures
B19: Average Net Fixed Assets
D20: 2014 | E20: 2015 | F20: 2016 | G20: 2017 | H20: 2018
B21: Net Fixed Assets | D21: Forecasted | E21: Forecasted | F21: Forecasted | G21: Forecasted | H21: Forecasted
B23: Opening Capital Investment | D23: 0 | E23: =D25 -> 3677840 | F23: =E25 -> 3677840 | G23: =F25 -> 3677840 | H23: =G25 -> 3677840
B24: Capital Investment | D24: =IF('Incremental Capital Summary'!$B$11="4th year of IRM cycle", 'Incremental Capital Summary'!E21/2, 'Incremental Capital Summary'!E21) -> 3677840 | E24: 0 | F24: 0 | G24: 0 | H24: 0
B25: Closing Capital Investment | D25: =SUM(D23:D24) -> 3677840 | E25: =SUM(E23:E24) -> 3677840 | F25: =SUM(F23:F24) -> 3677840 | G25: =SUM(G23:G24) -> 3677840 | H25: =SUM(H23:H24) -> 3677840
B27: Opening Accumulated Amortization | D27: 0 | E27: =D29 -> 81729.69605 | F27: =E29 -> 163459.3921 | G27: =F29 -> 245189.0881 | H27: =G29 -> 326918.7842
B28: Amortization | C28: ='Incremental Capital Summary'!I21 -> 0.0222222 | D28: =D24*$C$28 -> 81729.69605 | E28: =E23*$C$28 -> 81729.69605 | F28: =F23*$C$28 -> 81729.69605 | G28: =G23*$C$28 -> 81729.69605 | H28: =H23*$C$28 -> 81729.69605
B29: Closing Accumulated Amortization | D29: =SUM(D27:D28) -> 81729.69605 | E29: =SUM(E27:E28) -> 163459.3921 | F29: =SUM(F27:F28) -> 245189.0881 | G29: =SUM(G27:G28) -> 326918.7842 | H29: =SUM(H27:H28) -> 408648.4802
B31: Opening Net Fixed Assets | D31: 0 | E31: =E23-E27 -> 3596110.304 | F31: =F23-F27 -> 3514380.608 | G31: =G23-G27 -> 3432650.912 | H31: =H23-H27 -> 3350921.216
B32: Closing Net Fixed Assets | D32: =D25-D29 -> 3596110.304 | E32: =E25-E29 -> 3514380.608 | F32: =F25-F29 -> 3432650.912 | G32: =G25-G29 -> 3350921.216 | H32: =H25-H29 -> 3269191.52
B33: Average Net Fixed Assets | D33: =SUM(D31:D32)/2 -> 1798055.152 | E33: =SUM(E31:E32)/2 -> 3555245.456 | F33: =SUM(F31:F32)/2 -> 3473515.76 | G33: =SUM(G31:G32)/2 -> 3391786.064 | H33: =SUM(H31:H32)/2 -> 3310056.368
B38: For PILs Calculation
B40: UCC | D40: 2014 | E40: 2015 | F40: 2016 | G40: 2017 | H40: 2018
D41: Forecasted | E41: Forecasted | F41: Forecasted | G41: Forecasted | H41: Forecasted
B43: Opening UCC | D43: 0 | E43: =D51 -> 3383612.8 | F43: =E51 -> 3112923.776 | G43: =F51 -> 2863889.874 | H43: =G51 -> 2634778.684
B44: Capital Additions | D44: =D24 -> 3677840 | E44: =E24 -> 0 | F44: =F24 -> 0 | G44: =G24 -> 0 | H44: =H24 -> 0
B45: UCC Before Half Year Rule | D45: =SUM(D43:D44) -> 3677840 | E45: =SUM(E43:E44) -> 3383612.8 | F45: =SUM(F43:F44) -> 3112923.776 | G45: =SUM(G43:G44) -> 2863889.874 | H45: =SUM(H43:H44) -> 2634778.684
B46: Half Year Rule (1/2 Additions - Disposals) | D46: 0 | E46: =E44/2 -> 0 | F46: =F44/2 -> 0 | G46: =G44/2 -> 0 | H46: =H44/2 -> 0
B47: Reduced UCC | D47: =D45-D46 -> 3677840 | E47: =E45-E46 -> 3383612.8 | F47: =F45-F46 -> 3112923.776 | G47: =G45-G46 -> 2863889.874 | H47: =H45-H46 -> 2634778.684
B48: CCA Rate Class | C48: ='Incremental Capital Summary'!K21 -> 47
B49: CCA Rate | C49: ='Incremental Capital Summary'!M21 -> 0.08
B50: CCA | D50: =D47*$C$49 -> 294227.2 | E50: =E47*$C$49 -> 270689.024 | F50: =F47*$C$49 -> 249033.9021 | G50: =G47*$C$49 -> 229111.1899 | H50: =H47*$C$49 -> 210782.2947
B51: Closing UCC | D51: =D45-D50 -> 3383612.8 | E51: =E45-E50 -> 3112923.776 | F51: =F45-F50 -> 2863889.874 | G51: =G45-G50 -> 2634778.684 | H51: =H45-H50 -> 2423996.389

Sheet Fixed Asset Amort and UCC 2
B10: Fixed Asset Amortization and UCC 2
B12: Name or General Description of Project
B13: =IF(ISBLANK('Incremental Capital Summary'!B14), "", 'Incremental Capital Summary'!B14) -> System Renewal - Pole Replacements
B15: Asset Component
B16: =IF(ISBLANK('Incremental Capital Summary'!C22),"",'Incremental Capital Summary'!C22) -> Overhead conductor and devices
B19: Average Net Fixed Assets
D20: 2014 | E20: 2015 | F20: 2016 | G20: 2017 | H20: 2018
B21: Net Fixed Assets | D21: Forecasted | E21: Forecasted | F21: Forecasted | G21: Forecasted | H21: Forecasted
B23: Opening Capital Investment | D23: 0 | E23: =D25 -> 1098033 | F23: =E25 -> 1098033 | G23: =F25 -> 1098033 | H23: =G25 -> 1098033
B24: Capital Investment | D24: =IF('Incremental Capital Summary'!$B$11="4th year of IRM cycle", 'Incremental Capital Summary'!E22/2, 'Incremental Capital Summary'!E22) -> 1098033 | E24: 0 | F24: 0 | G24: 0 | H24: 0
B25: Closing Capital Investment | D25: =SUM(D23:D24) -> 1098033 | E25: =SUM(E23:E24) -> 1098033 | F25: =SUM(F23:F24) -> 1098033 | G25: =SUM(G23:G24) -> 1098033 | H25: =SUM(H23:H24) -> 1098033
B27: Opening Accumulated Amortization | D27: 0 | E27: =D29 -> 27450.825 | F27: =E29 -> 54901.65 | G27: =F29 -> 82352.475 | H27: =G29 -> 109803.3
B28: Amortization | C28: ='Incremental Capital Summary'!I22 -> 0.025 | D28: =D24*$C$28 -> 27450.825 | E28: =E23*$C$28 -> 27450.825 | F28: =F23*$C$28 -> 27450.825 | G28: =G23*$C$28 -> 27450.825 | H28: =H23*$C$28 -> 27450.825
B29: Closing Accumulated Amortization | D29: =SUM(D27:D28) -> 27450.825 | E29: =SUM(E27:E28) -> 54901.65 | F29: =SUM(F27:F28) -> 82352.475 | G29: =SUM(G27:G28) -> 109803.3 | H29: =SUM(H27:H28) -> 137254.125
B31: Opening Net Fixed Assets | D31: 0 | E31: =E23-E27 -> 1070582.175 | F31: =F23-F27 -> 1043131.35 | G31: =G23-G27 -> 1015680.525 | H31: =H23-H27 -> 988229.7
B32: Closing Net Fixed Assets | D32: =D25-D29 -> 1070582.175 | E32: =E25-E29 -> 1043131.35 | F32: =F25-F29 -> 1015680.525 | G32: =G25-G29 -> 988229.7 | H32: =H25-H29 -> 960778.875
B33: Average Net Fixed Assets | D33: =SUM(D31:D32)/2 -> 535291.0875 | E33: =SUM(E31:E32)/2 -> 1056856.762 | F33: =SUM(F31:F32)/2 -> 1029405.938 | G33: =SUM(G31:G32)/2 -> 1001955.113 | H33: =SUM(H31:H32)/2 -> 974504.2875
B38: For PILs Calculation
B40: UCC | D40: 2014 | E40: 2015 | F40: 2016 | G40: 2017 | H40: 2018
D41: Forecasted | E41: Forecasted | F41: Forecasted | G41: Forecasted | H41: Forecasted
B43: Opening UCC | D43: 0 | E43: =D51 -> 1010190.36 | F43: =E51 -> 929375.1312 | G43: =F51 -> 855025.1207 | H43: =G51 -> 786623.111
B44: Capital Additions | D44: =D24 -> 1098033 | E44: =E24 -> 0 | F44: =F24 -> 0 | G44: =G24 -> 0 | H44: =H24 -> 0
B45: UCC Before Half Year Rule | D45: =SUM(D43:D44) -> 1098033 | E45: =SUM(E43:E44) -> 1010190.36 | F45: =SUM(F43:F44) -> 929375.1312 | G45: =SUM(G43:G44) -> 855025.1207 | H45: =SUM(H43:H44) -> 786623.111
B46: Half Year Rule (1/2 Additions - Disposals) | D46: 0 | E46: =E44/2 -> 0 | F46: =F44/2 -> 0 | G46: =G44/2 -> 0 | H46: =H44/2 -> 0
B47: Reduced UCC | D47: =D45-D46 -> 1098033 | E47: =E45-E46 -> 1010190.36 | F47: =F45-F46 -> 929375.1312 | G47: =G45-G46 -> 855025.1207 | H47: =H45-H46 -> 786623.111
B48: CCA Rate Class | C48: ='Incremental Capital Summary'!K22 -> 47
B49: CCA Rate | C49: ='Incremental Capital Summary'!M22 -> 0.08
B50: CCA | D50: =D47*$C$49 -> 87842.64 | E50: =E47*$C$49 -> 80815.2288 | F50: =F47*$C$49 -> 74350.0105 | G50: =G47*$C$49 -> 68402.00966 | H50: =H47*$C$49 -> 62929.84888
B51: Closing UCC | D51: =D45-D50 -> 1010190.36 | E51: =E45-E50 -> 929375.1312 | F51: =F45-F50 -> 855025.1207 | G51: =G45-G50 -> 786623.111 | H51: =H45-H50 -> 723693.2622

Sheet Fixed Asset Amort and UCC 3
B10: Fixed Asset Amortization and UCC 3
B12: Name or General Description of Project
B13: =IF(ISBLANK('Incremental Capital Summary'!B14), "", 'Incremental Capital Summary'!B14) -> System Renewal - Pole Replacements
B15: Asset Component
B16: =IF(ISBLANK('Incremental Capital Summary'!C23),"",'Incremental Capital Summary'!C23) -> 
B19: Average Net Fixed Assets
D20: 2014 | E20: 2015 | F20: 2016 | G20: 2017 | H20: 2018
B21: Net Fixed Assets | D21: Forecasted | E21: Forecasted | F21: Forecasted | G21: Forecasted | H21: Forecasted
B23: Opening Capital Investment | D23: 0 | E23: =D25 -> 0 | F23: =E25 -> 0 | G23: =F25 -> 0 | H23: =G25 -> 0
B24: Capital Investment | D24: =IF('Incremental Capital Summary'!$B$11="4th year of IRM cycle", 'Incremental Capital Summary'!E23/2, 'Incremental Capital Summary'!E23) -> 0 | E24: 0 | F24: 0 | G24: 0 | H24: 0
B25: Closing Capital Investment | D25: =SUM(D23:D24) -> 0 | E25: =SUM(E23:E24) -> 0 | F25: =SUM(F23:F24) -> 0 | G25: =SUM(G23:G24) -> 0 | H25: =SUM(H23:H24) -> 0
B27: Opening Accumulated Amortization | D27: 0 | E27: =D29 -> 0 | F27: =E29 -> 0 | G27: =F29 -> 0 | H27: =G29 -> 0
B28: Amortization | C28: ='Incremental Capital Summary'!I23 -> 0 | D28: =D24*$C$28 -> 0 | E28: =E23*$C$28 -> 0 | F28: =F23*$C$28 -> 0 | G28: =G23*$C$28 -> 0 | H28: =H23*$C$28 -> 0
B29: Closing Accumulated Amortization | D29: =SUM(D27:D28) -> 0 | E29: =SUM(E27:E28) -> 0 | F29: =SUM(F27:F28) -> 0 | G29: =SUM(G27:G28) -> 0 | H29: =SUM(H27:H28) -> 0
B31: Opening Net Fixed Assets | D31: 0 | E31: =E23-E27 -> 0 | F31: =F23-F27 -> 0 | G31: =G23-G27 -> 0 | H31: =H23-H27 -> 0
B32: Closing Net Fixed Assets | D32: =D25-D29 -> 0 | E32: =E25-E29 -> 0 | F32: =F25-F29 -> 0 | G32: =G25-G29 -> 0 | H32: =H25-H29 -> 0
B33: Average Net Fixed Assets | D33: =SUM(D31:D32)/2 -> 0 | E33: =SUM(E31:E32)/2 -> 0 | F33: =SUM(F31:F32)/2 -> 0 | G33: =SUM(G31:G32)/2 -> 0 | H33: =SUM(H31:H32)/2 -> 0
B38: For PILs Calculation
B40: UCC | D40: 2014 | E40: 2015 | F40: 2016 | G40: 2017 | H40: 2018
D41: Forecasted | E41: Forecasted | F41: Forecasted | G41: Forecasted | H41: Forecasted
B43: Opening UCC | D43: 0 | E43: =D51 -> 0 | F43: =E51 -> 0 | G43: =F51 -> 0 | H43: =G51 -> 0
B44: Capital Additions | D44: =D24 -> 0 | E44: =E24 -> 0 | F44: =F24 -> 0 | G44: =G24 -> 0 | H44: =H24 -> 0
B45: UCC Before Half Year Rule | D45: =SUM(D43:D44) -> 0 | E45: =SUM(E43:E44) -> 0 | F45: =SUM(F43:F44) -> 0 | G45: =SUM(G43:G44) -> 0 | H45: =SUM(H43:H44) -> 0
B46: Half Year Rule (1/2 Additions - Disposals) | D46: 0 | E46: =E44/2 -> 0 | F46: =F44/2 -> 0 | G46: =G44/2 -> 0 | H46: =H44/2 -> 0
B47: Reduced UCC | D47: =D45-D46 -> 0 | E47: =E45-E46 -> 0 | F47: =F45-F46 -> 0 | G47: =G45-G46 -> 0 | H47: =H45-H46 -> 0
B48: CCA Rate Class | C48: ='Incremental Capital Summary'!K23 -> 0
B49: CCA Rate | C49: ='Incremental Capital Summary'!M23 -> 0
B50: CCA | D50: =D47*$C$49 -> 0 | E50: =E47*$C$49 -> 0 | F50: =F47*$C$49 -> 0 | G50: =G47*$C$49 -> 0 | H50: =H47*$C$49 -> 0
B51: Closing UCC | D51: =D45-D50 -> 0 | E51: =E45-E50 -> 0 | F51: =F45-F50 -> 0 | G51: =G45-G50 -> 0 | H51: =H45-H50 -> 0

Sheet Fixed Asset Amort and UCC 4
B10: Fixed Asset Amortization and UCC 4
B12: Name or General Description of Project
B13: =IF(ISBLANK('Incremental Capital Summary'!B14), "", 'Incremental Capital Summary'!B14) -> System Renewal - Pole Replacements
B15: Asset Component
B16: =IF(ISBLANK('Incremental Capital Summary'!C24),"",'Incremental Capital Summary'!C24) -> 
B19: Average Net Fixed Assets
D20: 2014 | E20: 2015 | F20: 2016 | G20: 2017 | H20: 2018
B21: Net Fixed Assets | D21: Forecasted | E21: Forecasted | F21: Forecasted | G21: Forecasted | H21: Forecasted
B23: Opening Capital Investment | D23: 0 | E23: =D25 -> 0 | F23: =E25 -> 0 | G23: =F25 -> 0 | H23: =G25 -> 0
B24: Capital Investment | D24: =IF('Incremental Capital Summary'!$B$11="4th year of IRM cycle", 'Incremental Capital Summary'!E24/2, 'Incremental Capital Summary'!E24) -> 0 | E24: 0 | F24: 0 | G24: 0 | H24: 0
B25: Closing Capital Investment | D25: =SUM(D23:D24) -> 0 | E25: =SUM(E23:E24) -> 0 | F25: =SUM(F23:F24) -> 0 | G25: =SUM(G23:G24) -> 0 | H25: =SUM(H23:H24) -> 0
B27: Opening Accumulated Amortization | D27: 0 | E27: =D29 -> 0 | F27: =E29 -> 0 | G27: =F29 -> 0 | H27: =G29 -> 0
B28: Amortization | C28: ='Incremental Capital Summary'!I24 -> 0 | D28: =D24*$C$28 -> 0 | E28: =E23*$C$28 -> 0 | F28: =F23*$C$28 -> 0 | G28: =G23*$C$28 -> 0 | H28: =H23*$C$28 -> 0
B29: Closing Accumulated Amortization | D29: =SUM(D27:D28) -> 0 | E29: =SUM(E27:E28) -> 0 | F29: =SUM(F27:F28) -> 0 | G29: =SUM(G27:G28) -> 0 | H29: =SUM(H27:H28) -> 0
B31: Opening Net Fixed Assets | D31: 0 | E31: =E23-E27 -> 0 | F31: =F23-F27 -> 0 | G31: =G23-G27 -> 0 | H31: =H23-H27 -> 0
B32: Closing Net Fixed Assets | D32: =D25-D29 -> 0 | E32: =E25-E29 -> 0 | F32: =F25-F29 -> 0 | G32: =G25-G29 -> 0 | H32: =H25-H29 -> 0
B33: Average Net Fixed Assets | D33: =SUM(D31:D32)/2 -> 0 | E33: =SUM(E31:E32)/2 -> 0 | F33: =SUM(F31:F32)/2 -> 0 | G33: =SUM(G31:G32)/2 -> 0 | H33: =SUM(H31:H32)/2 -> 0
B38: For PILs Calculation
B40: UCC | D40: 2014 | E40: 2015 | F40: 2016 | G40: 2017 | H40: 2018
D41: Forecasted | E41: Forecasted | F41: Forecasted | G41: Forecasted | H41: Forecasted
B43: Opening UCC | D43: 0 | E43: =D51 -> 0 | F43: =E51 -> 0 | G43: =F51 -> 0 | H43: =G51 -> 0
B44: Capital Additions | D44: =D24 -> 0 | E44: =E24 -> 0 | F44: =F24 -> 0 | G44: =G24 -> 0 | H44: =H24 -> 0
B45: UCC Before Half Year Rule | D45: =SUM(D43:D44) -> 0 | E45: =SUM(E43:E44) -> 0 | F45: =SUM(F43:F44) -> 0 | G45: =SUM(G43:G44) -> 0 | H45: =SUM(H43:H44) -> 0
B46: Half Year Rule (1/2 Additions - Disposals) | D46: 0 | E46: =E44/2 -> 0 | F46: =F44/2 -> 0 | G46: =G44/2 -> 0 | H46: =H44/2 -> 0
B47: Reduced UCC | D47: =D45-D46 -> 0 | E47: =E45-E46 -> 0 | F47: =F45-F46 -> 0 | G47: =G45-G46 -> 0 | H47: =H45-H46 -> 0
B48: CCA Rate Class | C48: ='Incremental Capital Summary'!K24 -> 0
B49: CCA Rate | C49: ='Incremental Capital Summary'!M24 -> 0
B50: CCA | D50: =D47*$C$49 -> 0 | E50: =E47*$C$49 -> 0 | F50: =F47*$C$49 -> 0 | G50: =G47*$C$49 -> 0 | H50: =H47*$C$49 -> 0
B51: Closing UCC | D51: =D45-D50 -> 0 | E51: =E45-E50 -> 0 | F51: =F45-F50 -> 0 | G51: =G45-G50 -> 0 | H51: =H45-H50 -> 0

Sheet Fixed Asset Amort and UCC 5
B10: Fixed Asset Amortization and UCC 5
B12: Name or General Description of Project
B13: =IF(ISBLANK('Incremental Capital Summary'!B14), "", 'Incremental Capital Summary'!B14) -> System Renewal - Pole Replacements
B15: Asset Component
B16: =IF(ISBLANK('Incremental Capital Summary'!C25),"",'Incremental Capital Summary'!C25) -> 
B19: Average Net Fixed Assets
D20: 2014 | E20: 2015 | F20: 2016 | G20: 2017 | H20: 2018
B21: Net Fixed Assets | D21: Forecasted | E21: Forecasted | F21: Forecasted | G21: Forecasted | H21: Forecasted
B23: Opening Capital Investment | D23: 0 | E23: =D25 -> 0 | F23: =E25 -> 0 | G23: =F25 -> 0 | H23: =G25 -> 0
B24: Capital Investment | D24: =IF('Incremental Capital Summary'!$B$11="4th year of IRM cycle", 'Incremental Capital Summary'!E25/2, 'Incremental Capital Summary'!E25) -> 0 | E24: 0 | F24: 0 | G24: 0 | H24: 0
B25: Closing Capital Investment | D25: =SUM(D23:D24) -> 0 | E25: =SUM(E23:E24) -> 0 | F25: =SUM(F23:F24) -> 0 | G25: =SUM(G23:G24) -> 0 | H25: =SUM(H23:H24) -> 0
B27: Opening Accumulated Amortization | D27: 0 | E27: =D29 -> 0 | F27: =E29 -> 0 | G27: =F29 -> 0 | H27: =G29 -> 0
B28: Amortization | C28: ='Incremental Capital Summary'!I25 -> 0 | D28: =D24*$C$28 -> 0 | E28: =E23*$C$28 -> 0 | F28: =F23*$C$28 -> 0 | G28: =G23*$C$28 -> 0 | H28: =H23*$C$28 -> 0
B29: Closing Accumulated Amortization | D29: =SUM(D27:D28) -> 0 | E29: =SUM(E27:E28) -> 0 | F29: =SUM(F27:F28) -> 0 | G29: =SUM(G27:G28) -> 0 | H29: =SUM(H27:H28) -> 0
B31: Opening Net Fixed Assets | D31: 0 | E31: =E23-E27 -> 0 | F31: =F23-F27 -> 0 | G31: =G23-G27 -> 0 | H31: =H23-H27 -> 0
B32: Closing Net Fixed Assets | D32: =D25-D29 -> 0 | E32: =E25-E29 -> 0 | F32: =F25-F29 -> 0 | G32: =G25-G29 -> 0 | H32: =H25-H29 -> 0
B33: Average Net Fixed Assets | D33: =SUM(D31:D32)/2 -> 0 | E33: =SUM(E31:E32)/2 -> 0 | F33: =SUM(F31:F32)/2 -> 0 | G33: =SUM(G31:G32)/2 -> 0 | H33: =SUM(H31:H32)/2 -> 0
B38: For PILs Calculation
B40: UCC | D40: 2014 | E40: 2015 | F40: 2016 | G40: 2017 | H40: 2018
D41: Forecasted | E41: Forecasted | F41: Forecasted | G41: Forecasted | H41: Forecasted
B43: Opening UCC | D43: 0 | E43: =D51 -> 0 | F43: =E51 -> 0 | G43: =F51 -> 0 | H43: =G51 -> 0
B44: Capital Additions | D44: =D24 -> 0 | E44: =E24 -> 0 | F44: =F24 -> 0 | G44: =G24 -> 0 | H44: =H24 -> 0
B45: UCC Before Half Year Rule | D45: =SUM(D43:D44) -> 0 | E45: =SUM(E43:E44) -> 0 | F45: =SUM(F43:F44) -> 0 | G45: =SUM(G43:G44) -> 0 | H45: =SUM(H43:H44) -> 0
B46: Half Year Rule (1/2 Additions - Disposals) | D46: 0 | E46: =E44/2 -> 0 | F46: =F44/2 -> 0 | G46: =G44/2 -> 0 | H46: =H44/2 -> 0
B47: Reduced UCC | D47: =D45-D46 -> 0 | E47: =E45-E46 -> 0 | F47: =F45-F46 -> 0 | G47: =G45-G46 -> 0 | H47: =H45-H46 -> 0
B48: CCA Rate Class | C48: ='Incremental Capital Summary'!K25 -> 0
B49: CCA Rate | C49: ='Incremental Capital Summary'!M25 -> 0
B50: CCA | D50: =D47*$C$49 -> 0 | E50: =E47*$C$49 -> 0 | F50: =F47*$C$49 -> 0 | G50: =G47*$C$49 -> 0 | H50: =H47*$C$49 -> 0
B51: Closing UCC | D51: =D45-D50 -> 0 | E51: =E45-E50 -> 0 | F51: =F45-F50 -> 0 | G51: =G45-G50 -> 0 | H51: =H45-H50 -> 0
